bitfinex/quotes_SOLUSD_20251018
["timestamp","ask_amount","ask_price","bid_price","bid_amount"]
[1760820102201,3.46286024,187.28,187.24,0.2]
[1760820102510,3.46286024,187.27,187.24,0.2]
[1760820102691,4.14286024,187.28,187.24,0.88]
[1760820103582,0.71,187.27,187.24,0.88]
[1760820104400,3.46286024,187.28,187.24,0.88]
[1760820104605,0.71,187.27,187.24,0.2]
[1760820105006,0.71,187.27,187.24,0.85]
[1760820105218,106.27286024,187.26,187.24,0.2]
[1760820105517,3.46286024,187.25,187.24,0.2]
[1760820105886,4.17286024,187.25,187.24,0.2]
[1760820106290,0.71,187.25,187.24,0.2]
[1760820106494,102.1,187.26,187.24,0.85]
[1760820106699,102.1,187.26,187.24,0.2]
[1760820106911,102.81,187.26,187.24,0.2]
[1760820109409,102.1,187.26,187.24,5.54069166]
[1760820109602,102.81,187.26,187.24,5.54069166]
[1760820110509,102.1,187.26,187.25,0.65]
[1760820111310,105.56286024,187.3,187.25,9.45331417]
[1760820111516,105.56286024,187.3,187.26,0.65]
[1760820111517,106.27286024,187.3,187.26,0.65]
[1760820111811,105.56286024,187.3,187.26,0.65]
[1760820112013,0.71,187.29,187.26,0.65]
[1760820112518,105.56286024,187.3,187.27,0.65]
[1760820112519,102.1,187.3,187.27,0.65]
[1760820112993,102.1,187.3,187.28,0.65]
[1760820113200,102.1,187.3,187.27,5.33987671]
[1760820113398,4.17286024,187.29,187.26,5.34003029]
[1760820113587,0.71,187.28,187.24,0.85]
[1760820113790,0.71,187.28,187.25,0.65]
[1760820114406,0.71,187.28,187.25,5.99042114]
[1760820114719,105.56286024,187.3,187.25,5.99042114]
[1760820114907,0.71,187.29,187.25,5.99042114]
[1760820115716,0.71,187.28,187.25,5.99042114]
[1760820118609,102.1,187.3,187.26,0.65]
[1760820118812,0.71,187.29,187.26,0.65]
[1760820119120,0.71,187.29,187.25,5.99042114]
[1760820119296,102.1,187.3,187.26,0.65]
[1760820119497,102.1,187.3,187.27,0.65]
[1760820120116,102.81,187.3,187.27,0.65]
[1760820120323,102.81,187.3,187.25,8.80328138]
[1760820120511,102.81,187.3,187.26,0.65]
[1760820121523,102.81,187.3,187.27,0.65]
[1760820122101,0.71,187.29,187.26,5.34016211]
[1760820122307,102.81,187.3,187.26,5.99016211]
[1760820123420,102.1,187.29,187.26,5.99016211]
[1760820123629,102.1,187.29,187.27,0.65]
[1760820125102,102.1,187.29,187.27,5.98985239]
[1760820125912,102.1,187.29,187.27,0.65]
[1760820126624,102.1,187.29,187.26,5.34009757]
[1760820126834,4.12286024,187.28,187.24,0.2]
[1760820127329,102.1,187.29,187.25,4.12286024]
[1760820127518,102.1,187.29,187.26,0.66]
[1760820127727,102.76,187.29,187.26,0.66]
[1760820128405,102.76,187.29,187.26,6.00004599]
[1760820128823,102.76,187.29,187.26,5.34004599]
[1760820129011,0.66,187.28,187.26,5.34004599]
[1760820129415,0.66,187.28,187.25,5.34045393]
[1760820129617,0.66,187.28,187.25,6.00045393]
[1760820129816,102.1,187.29,187.26,0.66]
[1760820130432,102.76,187.29,187.26,0.66]
[1760820130839,102.76,187.29,187.27,4.12286024]
[1760820130840,102.1,187.29,187.27,4.12286024]
[1760820131023,102.1,187.29,187.27,0.66]
[1760820131415,102.1,187.29,187.27,5.99967673]
[1760820131713,106.22286024,187.29,187.26,5.3401232]
[1760820131912,0.66,187.28,187.25,6.00041999]
[1760820132639,0.66,187.28,187.25,9.46328023]
[1760820133637,102.77,187.29,187.25,9.46328023]
[1760820134644,0.67,187.28,187.25,5.34041999]
[1760820134943,0.67,187.28,187.25,6.04041999]
[1760820137855,102.77,187.29,187.25,6.04041999]
[1760820138836,102.1,187.29,187.26,6.04014865]
[1760820139226,102.77,187.29,187.26,6.04014865]
[1760820139629,102.1,187.29,187.26,6.04014865]
[1760820140431,102.1,187.29,187.25,5.34045393]
[1760820140635,0.67,187.28,187.25,6.04045393]
[1760820143149,102.1,187.29,187.25,6.04045393]
[1760820143450,3.60399748,187.28,187.25,6.04045393]
[1760820143628,0.67,187.28,187.25,6.04045393]
[1760820145349,102.1,187.29,187.25,5.34045393]
[1760820145549,3.60560387,187.28,187.25,6.04045393]
[1760820145755,102.77,187.29,187.25,6.04045393]
[1760820145941,3.60548641,187.28,187.25,6.04045393]
[1760820146132,102.77,187.29,187.25,6.04045393]
[1760820146332,3.60548641,187.28,187.25,5.34045393]
[1760820146642,102.77,187.29,187.26,0.7]
[1760820146840,3.60545074,187.28,187.26,0.7]
[1760820147054,102.77,187.29,187.26,0.7]
[1760820147252,3.60545095,187.28,187.26,0.7]
[1760820147456,102.1,187.29,187.25,5.34045393]
[1760820147637,4.27553058,187.28,187.25,6.04045393]
[1760820147836,0.67,187.28,187.25,6.04045393]
[1760820149050,102.1,187.29,187.26,0.7]
[1760820149243,3.60565455,187.28,187.26,0.7]
[1760820149442,102.1,187.29,187.26,0.7]
[1760820149644,3.60571226,187.28,187.26,0.7]
[1760820149846,0.67,187.28,187.25,5.34045393]
[1760820150046,0.67,187.28,187.25,6.04045393]
[1760820150445,0.67,187.28,187.24,13.55248464]
[1760820150446,4.13286024,187.27,187.24,13.55248464]
[1760820150640,3.46286024,187.25,187.24,0.2]
[1760820150846,7.06884809,187.25,187.24,0.2]
[1760820151053,7.73884809,187.25,187.24,0.2]
[1760820152458,7.06884809,187.25,187.24,0.2]
[1760820152671,3.60598785,187.25,187.24,0.2]
[1760820152839,3.60598785,187.25,187.24,6.24073915]
[1760820153162,3.46286024,187.28,187.24,6.24073915]
[1760820153359,3.60438425,187.27,187.24,6.24073915]
[1760820153552,3.60438425,187.26,187.24,6.24073915]
[1760820153857,4.13286024,187.28,187.24,6.24073915]
[1760820154056,3.60450736,187.27,187.24,5.54073915]
[1760820154360,3.60450736,187.26,187.25,0.7]
[1760820157344,3.60450736,187.26,187.24,5.54073915]
[1760820157558,4.13286024,187.28,187.24,6.24073915]
[1760820157860,4.274809,187.27,187.24,6.24073915]
[1760820158063,3.604809,187.26,187.24,6.24073915]
[1760820158250,0.67,187.27,187.24,6.24073915]
[1760820158451,3.60479937,187.26,187.24,6.24073915]
[1760820158638,3.46286024,187.28,187.24,6.24073915]
[1760820158837,3.6047403,187.27,187.24,6.24073915]
[1760820159058,3.6047403,187.26,187.25,0.7]
[1760820160364,3.6047403,187.26,187.25,6.04045393]
[1760820163349,3.6047403,187.26,187.25,5.34045393]
[1760820163944,102.1,187.29,187.25,6.02045393]
[1760820164142,3.6044937,187.28,187.26,0.68]
[1760820164353,3.6044937,187.27,187.25,18.69158877]
[1760820164550,102.1,187.29,187.25,18.69158877]
[1760820164754,3.60449528,187.28,187.25,18.69158877]
[1760820164958,3.60449528,187.27,187.26,0.68]
[1760820165275,3.60449528,187.27,187.25,22.15444901]
[1760820165456,102.1,187.29,187.25,38.21225711]
[1760820165659,3.60452432,187.28,187.26,0.68]
[1760820165861,3.60452432,187.27,187.26,0.68]
[1760820166060,3.60452432,187.27,187.26,6.02016874]
[1760820167058,0.71,187.32,187.26,22.83345085]
[1760820167372,3.60415061,187.31,187.27,4.14286024]
[1760820167561,4.17286024,187.33,187.28,4.14286024]
[1760820167750,4.31320285,187.32,187.29,0.68]
[1760820167953,3.60320285,187.31,187.29,0.68]
[1760820168153,0.71,187.32,187.29,0.68]
[1760820168450,3.60320285,187.31,187.29,0.68]
[1760820168666,0.71,187.32,187.29,6.01903426]
[1760820168873,3.6025801,187.31,187.29,6.01903426]
[1760820169078,0.71,187.32,187.29,6.01903426]
[1760820169253,3.60257989,187.31,187.29,6.01903426]
[1760820169551,0.71,187.32,187.29,6.01903426]
[1760820169749,3.60202582,187.31,187.29,9.4818945]
[1760820169953,0.71,187.33,187.29,9.4818945]
[1760820170156,3.60202508,187.32,187.3,4.14286024]
[1760820170388,102.1,187.34,187.31,4.14286024]
[1760820170572,102.1,187.34,187.32,0.68]
[1760820170753,102.1,187.34,187.33,4.14286024]
[1760820171672,102.1,187.34,187.33,9.48103351]
[1760820172675,102.1,187.34,187.33,25.53282729]
[1760820173055,102.81,187.39,187.33,38.87826048]
[1760820173263,102.81,187.39,187.34,4.14286024]
[1760820173470,102.81,187.39,187.35,0.68]
[1760820174171,102.81,187.39,187.34,3.46286024]
[1760820174383,102.81,187.39,187.36,0.68]
[1760820174570,102.81,187.39,187.36,4.14286024]
[1760820174766,102.1,187.39,187.37,5.33703367]
[1760820175063,102.1,187.39,187.37,6.01703367]
[1760820177285,102.1,187.39,187.37,9.47989391]
[1760820179271,102.1,187.39,187.37,25.52825296]
[1760820180265,102.1,187.39,187.38,4.14286024]
[1760820180591,0.71,187.42,187.38,4.14286024]
[1760820180775,0.71,187.42,187.38,20.19036084]
[1760820181480,105.56286024,187.44,187.39,5.33646405]
[1760820181692,0.71,187.42,187.39,5.33646405]
[1760820182896,0.71,187.42,187.39,6.01646405]
[1760820183270,102.81,187.43,187.39,9.47932429]
[1760820183487,102.81,187.43,187.4,0.68]
[1760820183688,102.1,187.43,187.41,5.33589456]
[1760820183989,102.1,187.43,187.41,6.01589456]
[1760820184190,102.81,187.43,187.41,5.33589456]
[1760820185408,102.1,187.43,187.41,5.33589456]
[1760820185695,102.81,187.43,187.4,5.33617929]
[1760820189698,102.81,187.43,187.4,6.00617929]
[1760820190086,102.81,187.43,187.4,5.33617929]
[1760820191194,102.81,187.43,187.4,6.00617929]
[1760820191493,0.69,187.42,187.4,5.33617929]
[1760820194097,102.77,187.43,187.4,5.33617929]
[1760820195500,102.77,187.43,187.4,4.16286024]
[1760820195699,0.67,187.42,187.38,18.67794326]
[1760820195875,0.67,187.41,187.38,18.67794326]
[1760820196196,0.67,187.4,187.38,5.33674885]
[1760820196396,0.67,187.39,187.37,5.3369689]
[1760820196599,0.67,187.38,187.37,5.3369689]
[1760820197180,3.46286024,187.41,187.37,5.3369689]
[1760820197380,0.67,187.39,187.37,5.3369689]
[1760820197686,0.67,187.39,187.36,5.33731853]
[1760820198810,0.67,187.39,187.36,6.03731853]
[1760820201215,0.67,187.38,187.35,5.33754605]
[1760820201586,0.67,187.37,187.35,5.33754605]
[1760820203701,0.67,187.39,187.35,0.7]
[1760820204012,0.67,187.39,187.36,0.7]
[1760820204889,3.46286024,187.4,187.34,22.14546939]
[1760820205093,4.13286024,187.4,187.35,0.7]
[1760820205608,0.67,187.4,187.37,5.33703367]
[1760820205802,0.67,187.4,187.37,6.03703367]
[1760820206604,4.13286024,187.41,187.38,0.7]
[1760820206811,4.13286024,187.41,187.38,6.03672794]
[1760820207120,0.67,187.4,187.38,5.33672794]
[1760820207420,4.13286024,187.4,187.36,6.03706642]
[1760820207604,4.13286024,187.4,187.36,5.33706642]
[1760820207931,4.13286024,187.4,187.37,0.7]
[1760820209216,4.13286024,187.4,187.37,6.03685671]
[1760820211611,0.67,187.39,187.37,5.33685671]
[1760820212322,3.46286024,187.41,187.37,5.33685671]
[1760820212907,4.13286024,187.41,187.38,0.7]
[1760820213717,4.13286024,187.41,187.38,6.03669846]
[1760820214027,4.13286024,187.41,187.38,5.33669846]
[1760820214225,4.13286024,187.41,187.38,6.03669846]
[1760820214530,3.46286024,187.41,187.39,0.7]
[1760820214913,0.67,187.41,187.38,5.33669846]
[1760820215112,0.67,187.41,187.38,6.03669846]
[1760820216830,4.13286024,187.41,187.38,6.03669846]
[1760820217331,3.46286024,187.41,187.38,5.33669846]
[1760820217511,105.56286024,187.42,187.39,0.7]
[1760820217706,3.59934527,187.41,187.39,0.7]
[1760820217926,102.77,187.42,187.39,0.7]
[1760820218235,3.59930741,187.41,187.39,0.7]
[1760820218408,102.77,187.42,187.39,0.7]
[1760820219210,102.77,187.42,187.39,6.03643563]
[1760820219527,102.1,187.42,187.4,0.7]
[1760820219926,102.77,187.42,187.39,6.03643563]
[1760820220427,3.60020161,187.41,187.39,6.03643563]
[1760820223121,3.60020161,187.41,187.39,0.7]
[1760820223418,102.77,187.42,187.39,0.7]
[1760820223614,3.60051655,187.41,187.39,0.7]
[1760820223814,106.23286024,187.42,187.39,0.7]
[1760820224411,3.60052195,187.41,187.39,0.7]
[1760820224613,102.77,187.42,187.4,4.17286024]
[1760820224614,102.1,187.42,187.4,4.17286024]
[1760820224817,102.1,187.42,187.41,0.71]
[1760820226229,102.1,187.42,187.41,6.04589456]
[1760820229515,102.1,187.42,187.41,9.5087548]
[1760820230037,0.66,187.45,187.41,9.5087548]
[1760820230335,4.25874018,187.44,187.41,9.5087548]
[1760820230633,0.66,187.44,187.41,9.5087548]
[1760820230835,4.25874018,187.44,187.41,9.5087548]
[1760820231044,0.66,187.44,187.41,9.5087548]
[1760820231534,0.56,187.44,187.41,6.04589456]
[1760820234443,0.66,187.45,187.42,6.04547593]
[1760820234740,0.66,187.44,187.42,5.33547593]
[1760820234938,105.56286024,187.46,187.42,5.33547593]
[1760820235128,0.66,187.45,187.42,5.33547593]
[1760820235327,0.66,187.44,187.42,5.33547593]
[1760820235636,0.66,187.45,187.42,0.71]
[1760820236734,0.66,187.45,187.42,6.04553396]
[1760820237620,102.1,187.46,187.43,0.71]
[1760820237825,102.76,187.46,187.43,0.71]
[1760820238630,102.76,187.46,187.43,6.04522134]
[1760820241041,0.66,187.45,187.43,5.33522134]
[1760820241919,0.66,187.45,187.42,6.04555109]
[1760820243816,3.46286024,187.43,187.38,5.33655846]
[1760820244016,3.46286024,187.41,187.38,5.33655846]
[1760820244231,0.66,187.4,187.38,5.33655846]
[1760820245039,0.66,187.42,187.38,6.04655846]
[1760820245241,0.66,187.42,187.39,0.71]
[1760820245428,0.66,187.41,187.38,5.33655846]
[1760820245741,0.66,187.4,187.38,5.33655846]
[1760820246844,0.71,187.4,187.37,5.33703367]
[1760820247042,0.71,187.4,187.37,5.99703367]
[1760820249328,0.71,187.42,187.38,5.99655474]
[1760820249540,0.71,187.42,187.39,0.66]
[1760820251724,0.71,187.42,187.39,5.99644336]
[1760820251924,0.71,187.41,187.37,5.99676042]
[1760820252330,0.71,187.41,187.38,0.66]
[1760820253236,0.71,187.43,187.38,0.66]
[1760820253449,0.71,187.43,187.39,6.03642376]
[1760820253629,102.8,187.42,187.39,6.03642376]
[1760820254029,102.8,187.42,187.39,5.33642376]
[1760820257956,102.8,187.42,187.38,6.03674885]
[1760820258631,0.7,187.41,187.38,6.03674885]
[1760820260256,102.1,187.42,187.37,5.33703367]
[1760820260466,102.8,187.42,187.38,0.7]
[1760820260938,102.1,187.42,187.38,0.7]
[1760820261137,0.7,187.41,187.38,0.7]
[1760820262351,0.7,187.41,187.38,6.03649106]
[1760820263859,102.1,187.42,187.39,0.7]
[1760820264046,102.1,187.42,187.4,0.7]
[1760820264352,102.1,187.42,187.39,0.7]
[1760820265341,102.1,187.42,187.39,6.03629272]
[1760820266562,106.26286024,187.42,187.39,0.7]
[1760820266737,0.7,187.41,187.37,6.0370214]
[1760820266937,0.7,187.41,187.38,0.7]
[1760820267551,106.26286024,187.42,187.38,0.7]
[1760820267750,106.26286024,187.42,187.38,6.03669725]
[1760820267968,102.8,187.42,187.39,0.7]
[1760820268566,106.26286024,187.42,187.38,5.33669725]
[1760820268877,106.26286024,187.42,187.38,6.03669725]
[1760820271270,102.8,187.42,187.38,6.03669725]
[1760820271452,102.1,187.41,187.37,5.33703367]
[1760820271654,102.1,187.41,187.38,0.7]
[1760820272671,102.1,187.41,187.38,6.0366763]
[1760820273670,4.49989512,187.49,187.39,11.57647521]
[1760820273968,4.29795067,187.48,187.42,26.34286024]
[1760820274152,4.29795067,187.47,187.43,0.7]
[1760820274349,3.59781467,187.48,187.44,3.46286024]
[1760820274560,3.59781467,187.47,187.45,0.7]
[1760820274860,4.29781467,187.49,187.45,6.03459026]
[1760820275062,3.59781467,187.48,187.45,6.03459026]
[1760820275249,3.59781467,187.48,187.46,4.29781467]
[1760820275450,3.59781467,187.49,187.46,4.29781467]
[1760820275651,3.59781467,187.48,187.46,8.93226192]
[1760820275850,3.59781467,187.49,187.46,9.63226192]
[1760820276060,3.59781467,187.48,187.46,9.63226192]
[1760820276747,0.7,187.49,187.46,5.33444725]
[1760820276961,4.29781467,187.49,187.46,8.93226192]
[1760820277159,0.7,187.49,187.46,8.93226192]
[1760820277360,4.29781467,187.49,187.46,8.93226192]
[1760820277650,0.7,187.49,187.46,9.63226192]
[1760820277861,4.29781467,187.49,187.46,9.63226192]
[1760820278057,0.7,187.49,187.46,9.63226192]
[1760820278260,3.59781467,187.5,187.47,0.7]
[1760820278566,3.69781467,187.51,187.48,0.7]
[1760820281271,0.1,187.51,187.48,0.7]
[1760820281468,0.8,187.51,187.48,0.7]
[1760820281770,0.8,187.51,187.47,8.93184609]
[1760820281971,0.8,187.51,187.47,9.63184609]
[1760820282153,0.8,187.51,187.47,4.29781467]
[1760820282355,7.85328242,187.51,187.47,4.29781467]
[1760820282666,0.7,187.5,187.47,4.29781467]
[1760820282981,3.46286024,187.48,187.44,0.7]
[1760820283358,0.67,187.47,187.44,0.7]
[1760820284571,4.13286024,187.48,187.44,6.03500717]
[1760820285465,4.13286024,187.48,187.44,11.36861599]
[1760820288074,3.46286024,187.49,187.45,0.65]
[1760820288273,3.46286024,187.49,187.46,0.65]
[1760820288679,4.13286024,187.49,187.46,0.65]
[1760820289088,102.1,187.48,187.44,10.66861599]
[1760820289262,102.1,187.48,187.45,0.65]
[1760820290858,102.77,187.48,187.44,10.66861599]
[1760820291053,102.77,187.48,187.44,11.31861599]
[1760820293377,102.1,187.48,187.45,0.65]
[1760820293758,102.77,187.48,187.44,10.66861599]
[1760820293962,102.77,187.48,187.44,11.31861599]
[1760820294374,102.1,187.48,187.44,10.66861599]
[1760820294588,102.1,187.48,187.45,0.65]
[1760820294980,102.77,187.48,187.44,11.31861599]
[1760820295385,102.77,187.48,187.44,10.66861599]
[1760820295574,102.77,187.48,187.45,0.65]
[1760820295773,102.1,187.48,187.45,0.65]
[1760820296584,102.77,187.48,187.44,11.31861599]
[1760820296969,102.77,187.48,187.45,0.65]
[1760820297188,102.77,187.48,187.44,10.66861599]
[1760820297387,102.1,187.48,187.45,0.65]
[1760820300498,102.1,187.48,187.46,0.65]
[1760820300900,102.1,187.48,187.45,0.65]
[1760820301194,102.1,187.48,187.46,0.65]
[1760820301368,0.1,187.51,187.47,3.46286024]
[1760820301569,0.1,187.51,187.48,4.11286024]
[1760820301975,0.1,187.51,187.49,0.65]
[1760820302170,0.1,187.51,187.5,0.65]
[1760820302784,0.1,187.51,187.5,16.68892111]
[1760820303294,0.1,187.51,187.5,0.65]
[1760820303787,0.1,187.51,187.5,5.98333333]
[1760820304693,0.1,187.51,187.5,9.44619357]
[1760820304998,0.1,187.57,187.5,38.81501878]
[1760820305177,0.1,187.57,187.51,11.52647521]
[1760820305384,0.1,187.57,187.54,3.46286024]
[1760820305890,0.1,187.57,187.55,5.98179779]
[1760820306069,0.1,187.57,187.56,3.46286024]
[1760820306269,0.1,187.57,187.56,4.11286024]
[1760820306473,0.1,187.57,187.56,0.65]
[1760820306674,0.1,187.57,187.56,4.11286024]
[1760820307772,0.1,187.57,187.56,9.44448745]
[1760820310172,0.1,187.57,187.56,20.32096266]
[1760820311180,0.1,187.57,187.56,43.20096266]
[1760820312491,0.1,187.58,187.57,10.87647521]
[1760820312800,0.1,187.58,187.57,15.03933545]
[1760820313892,0.1,187.58,187.57,20.37067841]
[1760820315387,1e-08,187.58,187.57,22.50771594]
[1760820316289,1e-08,187.58,187.57,19.0448557]
[1760820316492,1e-08,187.58,187.57,22.50771594]
[1760820326899,1e-08,187.58,187.57,19.0448557]
[1760820327099,1e-08,187.58,187.57,22.50771594]
[1760820328492,1e-08,187.58,187.57,7.46838049]
[1760820328693,1e-08,187.58,187.57,10.93124073]
[1760820332104,0.1,187.62,187.57,10.93124073]
[1760820332105,0.1,187.62,187.61,33.75647521]
[1760820332305,0.1,187.62,187.61,37.21933545]
[1760820332507,0.1,187.62,187.61,37.88933545]
[1760820332703,0.1,187.62,187.61,40.02591638]
[1760820333116,0.1,187.62,187.61,45.35612265]
[1760820336618,0.1,187.62,187.61,41.89326241]
[1760820336813,0.1,187.62,187.61,45.35612265]
[1760820338714,0.82,187.62,187.61,41.22326241]
[1760820338916,0.1,187.62,187.61,33.80964744]
[1760820341608,0.1,187.62,187.61,45.35612265]
[1760820344712,0.1,187.62,187.61,44.68612265]
[1760820344923,0.1,187.62,187.61,45.36612265]
[1760820346125,0.1,187.62,187.61,44.68612265]
[1760820346721,0.1,187.62,187.61,45.36612265]
[1760820347028,0.78,187.62,187.61,28.21020627]
[1760820347227,0.78,187.62,187.61,7.46712963]
[1760820347427,0.78,187.62,187.61,10.92998987]
[1760820347726,0.1,187.62,187.61,8.79306651]
[1760820348308,0.1,187.62,187.61,20.34954172]
[1760820348813,0.1,187.62,187.61,13.03592675]
[1760820350319,0.1,187.62,187.61,12.35592675]
[1760820351933,0.78,187.62,187.61,5.33020627]
[1760820352316,0.78,187.62,187.6,5.3304904]
[1760820352928,0.1,187.62,187.61,15.01933545]
[1760820353230,0.1,187.62,187.61,3.46286024]
[1760820353712,0.1,187.62,187.61,4.14286024]
[1760820354331,0.1,187.62,187.61,3.46286024]
[1760820354635,0.1,187.62,187.61,8.79306651]
[1760820356229,0.1,187.62,187.61,10.92987571]
[1760820356629,0.1,187.62,187.61,7.46701547]
[1760820359731,0.1,187.62,187.61,11.60987571]
[1760820362426,0.1,187.62,187.61,22.48635092]
[1760820364621,0.1,187.63,187.62,33.75647521]
[1760820364833,0.1,187.63,187.62,37.89933545]
[1760820365037,1e-08,187.67,187.62,41.36219569]
[1760820365238,1e-08,187.67,187.66,33.75647521]
[1760820365559,1e-08,187.67,187.66,64.11933545]
[1760820365743,1e-08,187.68,187.67,14.33933545]
[1760820366041,1e-08,187.68,187.67,20.3478376]
[1760820366248,1e-08,187.68,187.67,47.2678376]
[1760820367941,1e-08,187.68,187.67,20.3478376]
[1760820368139,1e-08,187.68,187.67,47.2678376]
[1760820368339,1e-08,187.68,187.67,20.3478376]
[1760820368737,0.77,187.77,187.71,10.87647521]
[1760820368940,0.77,187.77,187.71,37.21933545]
[1760820369144,0.77,187.77,187.71,37.88933545]
[1760820369453,0.77,187.77,187.71,40.02466175]
[1760820369625,0.77,187.77,187.71,45.35202843]
[1760820371746,1e-08,187.72,187.71,45.35202843]
[1760820372547,1e-08,187.72,187.71,72.27202843]
[1760820373062,1e-08,187.72,187.71,45.35202843]
[1760820373248,1e-08,187.72,187.71,72.27202843]
[1760820373955,1e-08,187.72,187.71,45.35202843]
[1760820374138,1e-08,187.77,187.71,117.69013877]
[1760820374338,1e-08,187.77,187.76,37.21933545]
[1760820374851,1e-08,187.77,187.76,37.91933545]
[1760820375056,1e-08,187.77,187.76,40.05420589]
[1760820375437,1e-08,187.77,187.76,45.3801539]
[1760820376653,1e-08,187.79,187.77,10.87647521]
[1760820376862,1e-08,187.79,187.78,3.46286024]
[1760820377038,1e-08,187.79,187.78,31.08286024]
[1760820377432,1e-08,187.79,187.78,36.408241]
[1760820377933,1e-08,187.79,187.78,47.28471621]
[1760820380644,1e-08,187.79,187.78,47.26471621]
[1760820382749,1e-08,187.79,187.78,49.39901709]
[1760820385460,1e-08,187.81,187.8,22.88]
[1760820385662,0.1,187.86,187.85,22.88]
[1760820385867,0.1,187.86,187.85,37.21933545]
[1760820386056,0.1,187.86,187.85,46.00559201]
[1760820390565,0.79,187.86,187.82,3.46286024]
[1760820390764,0.69,187.85,187.82,6.92572048]
[1760820390971,0.69,187.84,187.82,6.92572048]
[1760820391269,0.69,187.83,187.82,8.78710685]
[1760820392072,0.69,187.83,187.82,5.32424661]
[1760820393643,0.69,187.83,187.8,5.32481363]
[1760820393843,3.46286024,187.85,187.8,5.32481363]
[1760820393844,0.69,187.82,187.8,5.32481363]
[1760820394043,3.46286024,187.85,187.8,5.32481363]
[1760820394044,0.69,187.81,187.8,5.32481363]
[1760820395545,0.69,187.81,187.76,5.32577878]
[1760820395750,3.46286024,187.79,187.74,5.32651539]
[1760820395944,0.69,187.78,187.74,5.32651539]
[1760820396176,0.69,187.77,187.74,5.32651539]
[1760820396479,0.69,187.76,187.74,5.32651539]
[1760820396980,0.69,187.75,187.74,5.32651539]
[1760820397780,0.69,187.75,187.72,18.64407918]
[1760820398070,0.69,187.74,187.7,5.3276505]
[1760820398247,0.69,187.73,187.7,5.3276505]
[1760820398448,0.69,187.72,187.7,5.3276505]
[1760820398769,0.69,187.71,187.69,18.64709079]
[1760820399071,3.46286024,187.83,187.73,10.87647521]
[1760820399266,0.69,187.8,187.77,3.46286024]
[1760820399675,0.69,187.8,187.78,3.46286024]
[1760820400056,3.46286024,187.85,187.78,3.46286024]
[1760820400259,0.69,187.8,187.78,3.46286024]
[1760820400777,0.69,187.8,187.79,5.32509718]
[1760820403067,5.42318383,187.86,187.79,5.32509718]
[1760820403267,0.69,187.82,187.79,5.32509718]
[1760820403471,0.66,187.81,187.79,5.32509718]
[1760820404684,0.66,187.8,187.79,5.32509718]
[1760820406158,0.66,187.82,187.79,5.32509718]
[1760820406480,0.66,187.81,187.79,5.32509718]
[1760820410385,3.46286024,187.84,187.79,5.32509718]
[1760820410692,0.66,187.83,187.79,5.32509718]
[1760820410882,3.46286024,187.84,187.79,5.32509718]
[1760820410883,0.66,187.82,187.79,5.32509718]
[1760820411569,0.66,187.84,187.79,9.46795742]
[1760820411770,102.1,187.85,187.79,14.1130546]
[1760820411969,0.66,187.83,187.79,10.65019436]
[1760820412382,0.66,187.83,187.79,11.33019436]
[1760820412970,0.66,187.82,187.79,10.65019436]
[1760820414183,0.66,187.82,187.79,11.33019436]
[1760820414884,0.66,187.84,187.79,11.33019436]
[1760820415084,105.56286024,187.85,187.79,11.33019436]
[1760820415392,0.66,187.83,187.79,11.33019436]
[1760820416283,0.66,187.83,187.76,22.88]
[1760820416284,4.12286024,187.82,187.76,22.88]
[1760820416501,0.66,187.82,187.77,0.68]
[1760820416664,3.46286024,187.83,187.77,0.68]